Cogmind - Beta 17.1 @@@ ROGUE MODE // 2026.09.19 @ 18:10:12 Player: unq Result: Self-destructed Performance ------------- Evolutions (6) 3000 Regions Visited (15) 3000 Robots Destroyed (340) 1700 Value Destroyed (14051) 14051 Prototype IDs (28) 560 Alien Tech Used (0) 0 Bonus (6057) 6057 TOTAL SCORE: 28368 Bonus ------- High Alert Combat Kills 2009 Follower Combat Kills 248 Entered Garrisons 800 Used RIF Installer 2500 Entered DSFs 500 Cogmind --------- Core Integrity 436/1150 Matter 218/300 Energy 385/385 System Corruption 26% Temperature Cool (0) Movement Treading (250) Ox1 Location -4/Factory Parts ------- > --- POWER (2) -------- Neutrino Core Light Antimatter Reactor > --- PROPULSION (5) --- Armored Medium Treads Armored Medium Treads Armored Medium Treads Armored Medium Treads Armored Medium Treads > --- UTILITY (7) ------ Advanced Heat Sink Advanced Cooling System Huge Storage Unit Advanced Signal Interpreter Advanced Targeting Computer Improved Medium Armor Plating Advanced Hacking Suite > --- WEAPON (5) ------- Enhanced Quantum Rifle Long-range Proton Cannon Matter Neutralizer > --- INVENTORY (25) --- Light Antimatter Reactor Advanced Heat Sink Advanced Cooling System Improved Energy Well (400) Matter Compressor (250) Advanced Sensor Array Advanced Sensor Array Seismic Detector Graphene Brace EM Shield Advanced Point Defense System Relay Coupler [NC] (32) Relay Coupler [Specialist] (20) Long-range Tractor Beam Variable Charge Gun Proton Cannon Advanced Plasma Cannon Hardcell Cannon Hardcell Cannon Remote Datajack Peak State ------------ > --- POWER ------------ Neutrino Core Light Antimatter Reactor > --- PROPULSION ------- Armored Medium Treads Armored Huge Wheel Armored Huge Wheel > --- UTILITY ---------- Advanced Cooling System Huge Storage Unit Advanced Signal Interpreter Advanced Targeting Computer Core Analyzer EM Shield Advanced Hacking Suite > --- WEAPON ----------- Enhanced Quantum Rifle Enhanced Quantum Rifle Matter Neutralizer KE Penetrator KE Penetrator > --- INVENTORY -------- Armored Medium Treads Armored Medium Treads Armored Medium Treads Armored Medium Treads Advanced Heat Sink Advanced Cooling System Improved Energy Well Matter Compressor Advanced Sensor Array Advanced Sensor Array Seismic Detector Improved Medium Armor Plating Graphene Brace Advanced Point Defense System Relay Coupler [NC] Relay Coupler [Grunt] Relay Coupler [Specialist] Long-range Tractor Beam Variable Charge Gun Proton Cannon Long-range Proton Cannon Advanced Plasma Cannon High-powered Shotgun Remote Datajack [Rating: 114] Favorites ----------- Power Light Nuclear Core Engine Subdweller Power Source Power Core Light Nuclear Core Reactor Light Antimatter Reactor Propulsion Light Treads Treads Light Treads Leg Aluminum Leg Wheel Wheel Hover Unit Cooled Airjet Utility High-capacity Storage Unit Device Seismic Detector Storage High-capacity Storage Unit Processor Advanced Targeting Computer Hackware Relay Coupler [Grunt] Protection Makeshift Light Armor Plating Weapon Gauss Rifle Energy Gun Enhanced Quantum Rifle Energy Cannon Proton Cannon Ballistic Gun Gauss Rifle Ballistic Cannon Heavy Mass Driver Launcher Heavy Missile Launcher Special Weapon Mining Laser Slashing Weapon Chainsword Build | -11 -10 -10 -8 -8 -8 -7 -7 -7 -6 -6 -5 -5 -4 -4 -4 ------- Run | Yrd Mat Sub Mat Gar Mat Fac Gar Fac Fac DSF Fac Gar Fac Gar Fac Slots Evolved 12 | . . . 4 . . 2 . . 2 . 2 . 2 . . Power 1 | . . . . . . . . . . . . . 1 . . Propulsion 3 | . . . 2 . . . . . . . . . 1 . . Utility 5 | . . . 2 . . . . . 2 . 1 . . . . Weapon 3 | . . . . . . 2 . . . . 1 . . . . Parts Attached 253 | 8 17 9 36 19 10 22 18 28 1 9 2 8 5 30 31 Power 27 | 1 2 2 7 2 . 1 3 1 . . . 1 1 2 4 Engine 9 | 1 1 2 3 . . . . 1 . . . . . . 1 Core 15 | . 1 . 4 2 . 1 3 . . . . 1 1 1 1 Reactor 3 | . . . . . . . . . . . . . . 1 2 Propulsion 69 | 2 6 . 11 5 4 4 6 12 . 2 . 2 1 8 6 Treads 46 | . 6 . 11 5 4 3 1 6 . 1 . 2 1 1 5 Leg 13 | 2 . . . . . . 5 1 . . . . . 5 . Wheel 9 | . . . . . . . . 5 . 1 . . . 2 1 Hover 1 | . . . . . . 1 . . . . . . . . . Flight . | . . . . . . . . . . . . . . . . Utility 81 | 3 5 2 6 6 5 11 3 7 . 5 2 3 2 8 13 Device 37 | 1 1 1 4 3 5 5 . 3 . 2 2 1 1 2 6 Storage 10 | 2 4 . . . . 2 . 1 . . . . 1 . . Processor 6 | . . . . 1 . . . 1 . 1 . . . 1 2 Hackware 8 | . . . 1 . . . 1 1 . . . 1 . 2 2 Protection 20 | . . 1 1 2 . 4 2 1 . 2 . 1 . 3 3 Artifact . | . . . . . . . . . . . . . . . . Weapon 76 | 2 4 5 12 6 1 6 6 8 1 2 . 2 1 12 8 Energy Gun 10 | 1 . . 4 . . . . 1 . . . 1 . 1 2 Energy Cannon 12 | . . 2 . 3 . . . . . . . 1 . 2 4 Ballistic Gun 36 | 1 3 2 6 3 . 4 2 3 1 1 . . . 8 2 Ballistic Cannon 8 | . . 1 . . . 1 3 2 . . . . 1 . . Launcher 5 | . . . 1 . 1 . . 1 . 1 . . . 1 . Special Weapon 3 | . 1 . . . . . 1 1 . . . . . . . Impact Weapon . | . . . . . . . . . . . . . . . . Slashing Weapon 2 | . . . 1 . . 1 . . . . . . . . . Piercing Weapon . | . . . . . . . . . . . . . . . . Special Melee Weapon . | . . . . . . . . . . . . . . . . Unidentified Prototypes 12 | . . . 7 . . 1 . 1 . . . . 1 . 2 Corrupted Parts 3 | . . . . . . . . . . . . . . 3 . System Corruption 19 | . . . . . . . . . . . . . . 19 . Parts Lost 100 | . 1 2 6 10 1 8 13 8 . 3 . 6 3 24 15 Power 6 | . . . . . . . 1 . . . . 1 . 2 2 Propulsion 33 | . . . . 6 . 2 7 4 . 1 . 2 2 7 2 Utility 27 | . . 1 2 3 1 2 3 2 . 2 . 1 1 7 2 Weapon 34 | . 1 1 4 1 . 4 2 2 . . . 2 . 8 9 Highest Loss Streak 10 | . 1 2 1 3 1 6 6 3 . 3 . 4 3 10 4 To Critical Strikes 7 | . . . . 2 . 1 . . . . . 1 . 3 . Average Backups 20 | 2 16 18 18 19 19 19 17 20 25 23 24 24 22 22 24 Power . | . . 1 1 1 . . 1 1 1 1 1 . . . . Propulsion 3 | 1 2 6 4 2 2 2 . 4 6 5 5 4 3 1 3 Utility 8 | . 9 7 3 5 6 7 7 8 12 8 8 9 10 11 12 Weapon 6 | . 3 3 8 10 10 8 7 5 5 6 8 8 7 8 7 Tool/Special . | . . . . . . . . . . . . . . . . Unused Backups 66 | . 2 7 8 4 2 2 6 3 . . . 8 . 8 16 Power 2 | . . . 1 . . . 1 . . . . . . . . Propulsion 11 | . . . 4 1 1 1 . . . . . . . . 4 Utility 35 | . 2 6 . 1 1 1 3 1 . . . 7 . 5 8 Weapon 18 | . . 1 3 2 . . 2 2 . . . 1 . 3 4 Tool/Special . | . . . . . . . . . . . . . . . . Average Slot Usage (%) 93 | . 99 100 98 99 99 99 85 81 80 90 96 95 99 83 85 Engine 5 | . 12 14 5 2 . . . 4 6 6 5 4 . . 1 Core 3 | . 1 . 3 6 9 7 6 2 . . . . 9 4 4 Treads 23 | . 26 28 35 35 35 29 19 14 13 20 23 22 25 4 3 Leg 2 | . 1 . . . . . 7 5 . . . . . 11 1 Wheel 2 | . . . . . . . . 8 13 3 . . . 2 8 Device 9 | . 13 8 12 10 15 12 1 3 . 6 14 16 14 7 5 Storage 8 | . 14 14 9 9 9 7 7 7 6 6 5 5 5 5 5 Processor 4 | . . . . 8 9 5 . 1 6 10 11 11 10 12 14 Hackware 1 | . . . 6 . . . 5 1 . . . . . 1 2 Protection 5 | . . 5 7 6 2 3 10 6 6 7 5 5 4 2 5 Energy Gun 1 | . 9 . 3 . . . . . . . . . 5 2 5 Energy Cannon 2 | . . 5 . 5 1 . 1 4 . . . . 4 3 3 Ballistic Gun 14 | . 16 14 13 11 16 25 9 6 20 25 22 20 10 14 13 Ballistic Cannon 1 | . . 1 . . . 1 8 6 . . . . 3 1 . Special Weapon 1 | . 1 7 . . . . . . . . . . . . . Slashing Weapon 1 | . . . . . . 2 2 2 6 . 4 2 2 1 1 Peak Build Rating 114 | 7 13 19 36 33 34 48 50 58 51 58 70 70 83 108 114 Average Rating 42 | 5 10 13 31 30 29 41 42 49 50 52 66 66 80 83 103 On Entrance 42 | . 7 11 15 32 31 34 45 42 48 51 58 65 65 71 105 Avg Prop Armor Cover (%) 6 | . 8 . . . . . . 7 9 7 . . . 10 4 Naked Turns . | . . . . . . . . . . . . . . . . Heaviest Build 158 | 14 50 60 64 70 66 92 99 146 120 133 126 130 145 158 152 Greatest Support 135 | 20 40 40 84 84 82 90 88 88 20 92 86 92 104 110 135 Greatest Overweight (x) 48 | . 1 1 . 1 . 1 24 11 5 13 1 1 1 6 48 Average Overweight (x) 1 | . . 1 . . . . . 4 5 3 1 1 1 2 2 Largest Inventory Capacity 25 | 8 20 20 20 20 20 20 20 25 25 25 25 25 25 25 25 Average Capacity 21 | 6 18 20 20 20 20 20 20 23 25 25 25 25 25 25 25 Most Carried 25 | 6 20 20 20 20 20 20 20 25 25 25 25 25 23 25 25 Average Carried 20 | 3 16 19 19 19 19 19 19 21 25 22 24 24 22 22 24 Final Capacity 25 | 8 20 20 20 20 20 20 20 25 25 25 25 25 25 25 25 Final Carried 25 | 6 20 20 20 20 20 20 20 25 25 25 25 24 22 25 20 Class Distribution -------------------- 28% | Scavenger-Mutant 24% | Mutant 20% | Scavenger-Gunner 8% | Scavenger-Tank 7% | Gunner 6% | Tank Dominant Class ---------------- Mutant | -10/Materials Mutant | -10/Subcaves Scavenger-Mutant | -8/Materials Scavenger-Mutant | -8/Garrison Scavenger-Mutant | -8/Materials Scavenger-Gunner | -7/Factory Scavenger-Tank | -7/Garrison Tank | -7/Factory Gunner | -6/Factory Gunner | -6/DSF Gunner | -5/Factory Scavenger-Gunner | -5/Garrison Scavenger-Tank | -4/Factory Scavenger-Gunner | -4/Garrison Scavenger-Gunner | -4/Factory Resources | -11 -10 -10 -8 -8 -8 -7 -7 -7 -6 -6 -5 -5 -4 -4 -4 ----------- Run | Yrd Mat Sub Mat Gar Mat Fac Gar Fac Fac DSF Fac Gar Fac Gar Fac Matter Collected 12234 | 290 573 313 1914 775 302 1096 855 2488 . 353 210 628 193 972 1272 Remotely 2062 | . . . . . . . . 1314 . . . 131 . 134 483 Salvage Created 14700 | 175 871 371 2156 962 461 1397 616 2319 . 515 . 935 323 1658 1941 Parts 703 | 13 49 21 111 56 28 69 28 124 . 34 . 25 20 46 79 Haulers Intercepted 15 | . 2 . 6 . 1 1 . 2 . 1 . . . . 2 Recyclers Shooed 11 | 1 1 . 4 . . 2 . 1 . . . . . . 2 Parts Field Recycled . | . . . . . . . . . . . . . . . . Retrieved Matter . | . . . . . . . . . . . . . . . . Parts Self-Destructed 11 | . . 11 . . . . . . . . . . . . . Prevented . | . . . . . . . . . . . . . . . . Parts Restored . | . . . . . . . . . . . . . . . . Kills | -11 -10 -10 -8 -8 -8 -7 -7 -7 -6 -6 -5 -5 -4 -4 -4 ------- Run | Yrd Mat Sub Mat Gar Mat Fac Gar Fac Fac DSF Fac Gar Fac Gar Fac Combat Hostiles Destroyed 273 | . 13 13 24 23 9 31 19 48 . 11 . 37 4 18 23 Melee 6 | . . . . . . 1 4 . . . . . . . 1 Guns 161 | . 13 9 23 12 3 23 10 8 . 7 . 34 3 6 10 Cannons 43 | . . 3 . 4 1 1 4 18 . . . 1 1 5 5 AOE 57 | . . . 1 7 5 6 1 22 . 4 . 2 . 3 6 Classes Destroyed 24 | 3 5 1 5 2 1 3 . . . 2 . 1 . . 1 Worker 31 | 1 . . 3 . 1 8 . 13 . . . . . . 5 Builder 13 | . . . 5 . . 1 . 3 . . . . . . 4 Tunneler 8 | 3 . . 2 . 1 1 . 1 . . . . . . . Hauler 15 | . 2 . 6 . 1 1 . 2 . 1 . . . . 2 Recycler 24 | 1 3 . 6 . 1 4 . 6 . . . . . . 3 Mechanic 4 | . 1 . . . . . . 2 . . . . . . 1 Operator 4 | . . . 1 . . . . 2 . . . . 1 . . Watcher 9 | . 3 . 3 . . . . 3 . . . . . . . Swarmer 43 | . 3 6 . 4 . 4 6 8 . 4 . 4 . 2 2 Cutter 2 | . . . . . . . . . . 2 . . . . . Saboteur 1 | . . . . . . . . . . . . . . . 1 Grunt 86 | . 10 . 8 9 5 4 7 21 . 3 . 2 4 4 9 Brawler 7 | . . . 3 . . . . 3 . . . . . . 1 Duelist 6 | . . . . 2 1 . 1 2 . . . . . . . Protector 2 | . . . . . 1 . . 1 . . . . . . . Sentry 29 | . . . 8 3 2 1 4 3 . . . 3 . 4 1 Demolisher 2 | . . . . . . 2 . . . . . . . . . Specialist 5 | . . . . 3 . . . . . 1 . 1 . . . Hunter 16 | . . . 5 2 . 1 1 1 . . . . . 4 2 Programmer 20 | . . . . . . 4 . 8 . . . . . 2 6 Heavy 1 | . . . . . . . . . . 1 . . . . . Behemoth 4 | . . . . . . . . . . . . 1 . 2 1 Subdweller 7 | . . 7 . . . . . . . . . . . . . Assembled 42 | . . . . . . 15 . . . . . 27 . . . Thug 1 | . . . . . . . . 1 . . . . . . . Best Kill Streak 18 | 3 3 4 6 9 6 18 5 8 . 8 . 13 4 6 9 Combat Bots Only 17 | . 3 4 3 9 5 17 5 5 . 8 . 13 4 6 7 Max Kills in Single Turn 7 | 1 1 1 3 2 2 7 1 4 . 4 . 2 1 2 2 Gunslinging 1 | . . . 1 1 . 1 . . . . . 1 . . . Exploded 6 | . . . 1 2 2 6 1 3 . 4 . 2 . 1 2 Melee 1 | . . . . . . 1 1 . . . . . . . 1 Uniques/NPCs Destroyed . | . . . . . . . . . . . . . . . . Combat | -11 -10 -10 -8 -8 -8 -7 -7 -7 -6 -6 -5 -5 -4 -4 -4 -------- Run | Yrd Mat Sub Mat Gar Mat Fac Gar Fac Fac DSF Fac Gar Fac Gar Fac Hostile Shots Fired 1986 | . 71 91 179 197 38 188 235 278 . 34 . 97 73 226 279 Missed 606 | . 14 24 50 70 9 47 71 80 . 11 . 24 33 84 89 Hits 1380 | . 57 67 129 127 29 141 164 198 . 23 . 73 40 142 190 Melee 34 | . . . . 6 . 10 2 2 . 7 . 5 . . 2 Projectile 1346 | . 57 67 129 121 29 131 162 196 . 16 . 68 40 142 188 AOE 21 | . . . . . . 15 . . . 2 . . . . 4 Critical Strikes 64 | . 1 . 7 6 2 1 2 16 . 4 . 3 3 11 8 Part Disruptions 2 | . . . . . . 1 . . . . . 1 . . . Damage Taken 21944 | . 640 802 1723 1896 548 2218 1988 3242 . 562 . 1153 546 2711 3915 Core 2081 | . 91 157 218 131 75 169 192 201 . 44 . 89 46 354 314 Absorbed by Shields 956 | . . . 164 20 . . . . . 126 . 321 190 135 . Reduced by Siege Mode 20 | . . . . . . . . . . . . . . 20 . Ignored by Resistances 430 | . . . . . . 198 . 32 . . . . . 116 84 Regen/Repaired (Parts) 793 | . 264 . . . 223 . . 160 . . 146 . . . . Core Remaining (%) 54 | 100 . . . . 22 . . 19 . 94 . 91 . . . Volleys Fired 817 | 10 65 71 139 78 30 49 42 110 . 20 . 58 8 57 80 Largest 5 | 2 2 2 2 2 2 4 4 4 . 4 . 4 5 5 5 Hottest 366 | 70 100 180 100 150 103 128 137 150 . 109 . 234 278 264 366 Shots Fired 1929 | 20 125 106 268 127 53 182 117 218 . 61 . 196 35 161 260 Gun 1479 | 20 122 50 263 93 41 172 66 109 . 56 . 182 23 106 176 Cannon 336 | . . 24 . 30 8 9 48 96 . . . 5 12 33 71 Launcher 42 | . . . 2 4 4 1 . 12 . 5 . 2 . 7 5 Special 72 | . 3 32 3 . . . 3 1 . . . 7 . 15 8 Kinetic 1474 | 10 73 57 235 93 41 181 114 202 . 56 . 180 22 93 117 Thermal 322 | 10 52 49 31 . . . . . . . . 7 13 46 114 Explosive 34 | . . . 2 4 4 1 . 12 . 1 . 2 . 3 5 Electromagnetic 65 | . . . . 30 8 . . 3 . 4 . . . 4 16 Robot Hit Streak 36 | 10 14 20 26 31 20 28 13 8 . 10 . 36 7 17 10 Robot Miss Streak 8 | 2 3 3 4 2 1 5 6 5 . 4 . 4 1 3 8 Penetration Max 1 | . . . 1 1 1 1 1 1 . 1 . 1 . 1 1 Secondary Targets 30 | . 1 . 4 3 . 9 . 1 . 4 . 8 . . . Max Gunslinging Chain 2 | . 1 . 1 1 . 2 . 1 . 1 . 1 . . . Shots Hit Robots 1282 | 15 82 45 193 85 39 136 81 125 . 40 . 129 21 155 136 Core Hits 664 | 8 42 16 71 42 20 66 59 87 . 28 . 74 15 64 72 Critical Kills 18 | 1 . 3 4 1 . 1 1 . . . . 2 . 3 2 Critical Parts Destroyed 18 | . . . 7 1 . 3 1 2 . . . 1 . 2 1 Critical Strikes 56 | 1 4 6 14 2 1 4 3 6 . . . 3 . 9 3 Burn 9 | . 4 . 3 . . . . . . . . . . 2 . Meltdown 5 | . . 1 . . . . . . . . . . . 3 1 Destroy 34 | 1 . 4 11 2 . 4 2 2 . . . 3 . 3 2 Blast 6 | . . 1 . . . . 1 4 . . . . . . . Corrupt 1 | . . . . . 1 . . . . . . . . . . Sever 1 | . . . . . . . . . . . . . . 1 . Melee Attacks 156 | . . . 7 15 . 22 11 23 . . 2 6 1 54 15 Impact . | . . . . . . . . . . . . . . . . Slashing 156 | . . . 7 15 . 22 11 23 . . 2 6 1 54 15 Piercing . | . . . . . . . . . . . . . . . . Sneak Attacks 32 | . . . 1 . . 12 . 15 . . . . . . 4 Combat Hostiles . | . . . . . . . . . . . . . . . . Follow-up Attacks . | . . . . . . . . . . . . . . . . Damage Inflicted 43240 | 153 1018 836 4371 2353 1494 3923 1998 10743 . 1337 . 2874 534 5565 6041 Guns 19602 | 153 1011 524 3858 1370 665 2279 980 1051 . 801 . 2406 310 1576 2618 Cannons 8236 | . . 312 . 407 96 157 869 3923 . . . 136 224 776 1336 Explosions 9677 | . . . 387 576 733 502 . 4402 . 536 . 295 . 554 1692 Melee 5521 | . . . 77 . . 947 139 1325 . . . 37 . 2659 337 Ramming 204 | . 7 . 49 . . 38 10 42 . . . . . . 58 Kinetic 22468 | 76 577 570 3530 1370 665 2436 1849 4941 . 801 . 2381 273 1349 1650 Thermal 5329 | 77 434 266 328 132 . . . 613 . . . 161 261 1003 2054 Explosive 8535 | . . . 387 444 733 502 . 3789 . 454 . 295 . 379 1552 Electromagnetic 1183 | . . . . 407 96 . . 33 . 82 . . . 175 390 Impact . | . . . . . . . . . . . . . . . . Slashing 5521 | . . . 77 . . 947 139 1325 . . . 37 . 2659 337 Piercing . | . . . . . . . . . . . . . . . . Highest Corruption 26 | . . . 1 1 1 2 2 10 . . . 1 3 23 26 Average Corruption 7 | . . . 1 1 1 1 2 4 . . . 1 2 16 23 Corruption Purged 2 | . . . . . . 2 . . . . . . . . . Corruption Blocked . | . . . . . . . . . . . . . . . . Effects 282 | . . . 6 17 4 5 17 74 . . . 3 . 53 103 Message Errors 58 | . . . 2 6 1 2 4 14 . . . 1 . 10 18 Matter Fused 68 | . . . . 2 1 2 5 23 . . . . . 14 21 Heat Flow Errors 33 | . . . 1 1 . 1 1 10 . . . 1 . 8 10 Energy Discharges 34 | . . . 2 2 . . 2 6 . . . . . 5 17 Parts Rejected 4 | . . . . . . . 1 1 . . . . . . 2 Parts Fused 3 | . . . . 1 . . . 1 . . . . . 1 . Data Loss (minor) 35 | . . . 1 3 . . 3 9 . . . 1 . 6 12 Data Loss (major) 8 | . . . . 1 . . 1 3 . . . . . 2 1 Misfires 7 | . . . . . 1 . . 1 . . . . . 2 3 Alerts 5 | . . . . . 1 . . 2 . . . . . . 2 Misdirections 1 | . . . . . . . . . . . . . . 1 . Weapon Failures 26 | . . . . 1 . . . 4 . . . . . 4 17 Overload Shots . | . . . . . . . . . . . . . . . . Overflow Damage 2237 | . . . 52 . 13 371 60 1363 . . . 4 . 144 230 Projectiles 812 | . . . . . . . 60 752 . . . . . . . Explosions 432 | . . . . . 13 . . 266 . . . 4 . 2 147 Melee 993 | . . . 52 . . 371 . 345 . . . . . 142 83 Knockbacks 29 | . . 1 . . . . 10 16 . . . . 1 1 . Impact . | . . . . . . . . . . . . . . . . Kinetic 28 | . . 1 . . . . 10 15 . . . . 1 1 . Secondary 1 | . . . . . . . . 1 . . . . . . . Self-Inflicted Damage 657 | . . . . 42 96 47 . 346 . 12 . . . 10 104 Shots 17 | . . . . 1 3 1 . 8 . 1 . . . 1 2 Rammed 29 | . 3 . 6 . . 5 4 8 . . . . . . 3 Targets Rammed 30 | . 3 . 7 . . 5 4 8 . . . . . . 3 Kicked . | . . . . . . . . . . . . . . . . Crushed 1 | . . . 1 . . . . . . . . . . . . Highest Temperature 1201 | 40 17 18 324 255 96 356 359 504 . 1201 . 248 341 256 655 Average Temperature 106 | 16 9 10 59 30 37 97 115 105 . 296 . 72 157 73 135 Received Heat Transfer 4572 | . 288 78 520 460 243 343 546 993 . 18 . 145 71 355 512 Effects 41 | . . . 1 1 . 4 1 8 . 16 . . 1 . 9 Shutdowns 9 | . . . . . . . . 2 . 2 . . 1 . 4 Energy Bleed 9 | . . . 1 1 . . . 2 . 5 . . . . . Interference 13 | . . . . . . 4 . . . 5 . . . . 4 Matter Decay 1 | . . . . . . . . 1 . . . . . . . Short Circuit 3 | . . . . . . . 1 . . 2 . . . . . Damage (minor) 4 | . . . . . . . . 1 . 2 . . . . 1 Damage (major) 2 | . . . . . . . . 2 . . . . . . . Siege Activations 1 | . . . . . . . . . . . . . . 1 . Total Turns 11 | . . . . . . . . . . . . . . 11 . Longest Duration 11 | . . . . . . . . . . . . . . 11 . Martial Activations . | . . . . . . . . . . . . . . . . Shielding Activations . | . . . . . . . . . . . . . . . . Robots Disrupted . | . . . . . . . . . . . . . . . . Combat Hostiles . | . . . . . . . . . . . . . . . . Robots Corrupted 2 | . . . . . . . . 1 . . . . . 1 . Combat Hostiles 1 | . . . . . . . . . . . . . . 1 . Parts Fried 6 | . . . . 1 1 . . 1 . . . . . . 3 Impact Corruptions 1 | . . . . . . . . 1 . . . . . . . Robots Melted 5 | . . 1 . . . . . . . . . . . 3 1 Combat Hostiles 5 | . . 1 . . . . . . . . . . . 3 1 Parts Melted 24 | . 5 4 2 . . . . . . . . . . 10 3 Heat Transferred 8023 | 222 1591 370 814 150 . . . 500 . . . 237 398 1456 2285 Parts Sabotaged 6 | . . . . . . . . . . . . . . . 6 Parts Stolen . | . . . . . . . . . . . . . . . . Parts Stripped . | . . . . . . . . . . . . . . . . Power Chain Reactions 3 | . . . . 1 . . . . . . . . . 1 1 Alert | -11 -10 -10 -8 -8 -8 -7 -7 -7 -6 -6 -5 -5 -4 -4 -4 ------- Run | Yrd Mat Sub Mat Gar Mat Fac Gar Fac Fac DSF Fac Gar Fac Gar Fac Maximum Alert Level 5 | . 1 . 2 4 2 1 3 5 3 3 2 3 2 2 2 Low Security (%) 34 | 100 93 . 66 . . 60 7 . . . . 8 . 15 73 Level 1 28 | . 6 . 19 5 18 39 33 44 . . 82 5 84 53 17 Level 2 21 | . . . 14 33 81 . 50 9 . 47 17 68 15 31 8 Level 3 8 | . . . . 39 . . 9 11 100 52 . 18 . . . Level 4 5 | . . . . 21 . . . 23 . . . . . . . Level 5 1 | . . . . . . . . 10 . . . . . . . High Security . | . . . . . . . . . . . . . . . . Max Security . | . . . . . . . . . . . . . . . . Sterilizations 1 | . . . . . . . . . . 1 . . . . . Peak Influence 1753 | 10 216 . 539 1193 593 288 767 1753 854 821 430 818 429 504 613 Initial 854 | . 3 . 38 346 573 259 136 402 854 576 430 165 429 141 264 Average 400 | 2 66 . 165 797 481 172 489 776 840 729 340 532 340 333 186 Influence Increases 9655 | 25 564 240 952 952 364 605 761 2161 . 275 69 773 105 643 1166 Destroy 0b10 Robot/C 4600 | . 260 120 480 480 160 320 380 940 . 220 20 240 80 400 500 Destroy 0b10 Robot/NC 585 | 25 45 . 130 . 25 75 . 165 . 5 . . 5 25 85 Destroy Leader 816 | . 60 . 178 20 42 92 20 230 . 30 . 20 10 40 74 Allied During Kill 84 | . . . . 2 . . . 5 . . 1 34 . 11 31 Successful Hack 243 | . 47 . 39 28 17 12 14 4 . . 44 14 . . 24 Select Force Hacks 90 | . 60 . 30 . . . . . . . . . . . . Disable Machine 780 | . 45 . 30 60 15 30 . 435 . . . 15 . . 150 Anti-Garrison Action 1150 | . . . . 250 . . 250 150 . . . 400 . 100 . Destroy Structure 767 | . 2 . 35 67 45 16 37 172 . 5 4 50 10 52 272 Partial Spotted 30 | . . . . . 15 . 15 . . . . . . . . Lose Combat Pursuer 510 | . 45 120 30 45 45 60 45 60 . 15 . . . 15 30 Influence Decreases 9042 | 20 407 328 493 307 971 981 189 1183 921 278 653 192 721 341 1057 Entered New Map 3936 | . 2 78 36 187 605 312 59 365 891 248 391 72 389 61 240 Time Decay 3887 | 20 395 230 418 . 356 589 . 718 30 . 222 . 302 . 607 Lost Part 979 | . 10 20 39 100 10 80 130 80 . 30 . 60 30 240 150 Lost Ally 240 | . . . . 20 . . . 20 . . 40 60 . 40 60 Squads Dispatched 44 | . 2 . 3 . 2 7 . 17 . 2 3 . 1 . 7 Investigation 7 | . 2 . 2 . . 1 . . . . 2 . . . . Extermination 14 | . . . . . . 4 . 5 . . 1 . 1 . 3 Reinforcement 12 | . . . 1 . 1 2 . 4 . 2 . . . . 2 Assault 10 | . . . . . 1 . . 7 . . . . . . 2 Garrison 1 | . . . . . . . . 1 . . . . . . . Intercept . | . . . . . . . . . . . . . . . . Searches Triggered . | . . . . . . . . . . . . . . . . Construction Impeded 5 | . . . . . . 1 . 2 . . . . . . 2 Haulers Reinforced 1 | . . . . . . 1 . . . . . . . . . Active Scanning Responses . | . . . . . . . . . . . . . . . . Cargo Convoy Interrupts . | . . . . . . . . . . . . . . . . Stealth | -11 -10 -10 -8 -8 -8 -7 -7 -7 -6 -6 -5 -5 -4 -4 -4 --------- Run | Yrd Mat Sub Mat Gar Mat Fac Gar Fac Fac DSF Fac Gar Fac Gar Fac Distress Signals 12 | . 1 . 3 . 1 4 . 2 . . . . . . 1 Communications Jammed . | . . . . . . . . . . . . . . . . Distress Signals . | . . . . . . . . . . . . . . . . Times Spotted 398 | . 21 19 39 29 13 43 26 67 . 13 1 52 12 25 38 Peak Tracking Total 9 | . 3 4 5 8 5 9 5 5 . 5 1 6 7 5 5 Tactical Retreats 29 | . 3 4 2 2 2 2 3 4 . 1 . 3 . 1 2 Traps | -11 -10 -10 -8 -8 -8 -7 -7 -7 -6 -6 -5 -5 -4 -4 -4 ------- Run | Yrd Mat Sub Mat Gar Mat Fac Gar Fac Fac DSF Fac Gar Fac Gar Fac Traps Triggered 25 | . 2 . 1 1 1 2 4 1 . 2 . 4 . 5 2 Indirectly . | . . . . . . . . . . . . . . . . Trap Hack Attempts . | . . . . . . . . . . . . . . . . Triggered . | . . . . . . . . . . . . . . . . Disarmed . | . . . . . . . . . . . . . . . . Reprogrammed . | . . . . . . . . . . . . . . . . Reused . | . . . . . . . . . . . . . . . . Traps Extracted . | . . . . . . . . . . . . . . . . Installed . | . . . . . . . . . . . . . . . . Triggered . | . . . . . . . . . . . . . . . . Machines | -11 -10 -10 -8 -8 -8 -7 -7 -7 -6 -6 -5 -5 -4 -4 -4 ---------- Run | Yrd Mat Sub Mat Gar Mat Fac Gar Fac Fac DSF Fac Gar Fac Gar Fac Machines Disabled 63 | . 3 1 2 7 1 2 2 30 . . . 3 . 2 10 Max in Single Turn 6 | . 1 1 1 1 1 2 1 5 . . . 1 . 1 6 Garrison Access 3 | . . . . . . . . 1 . . . . . . 2 Garrison Relay 9 | . . . . 3 . . 2 . . . . 2 . 2 . Machines Repaired . | . . . . . . . . . . . . . . . . Machines Dismantled . | . . . . . . . . . . . . . . . . Machines Sabotaged . | . . . . . . . . . . . . . . . . Overloaded Fab Kills . | . . . . . . . . . . . . . . . . Hacking | -11 -10 -10 -8 -8 -8 -7 -7 -7 -6 -6 -5 -5 -4 -4 -4 --------- Run | Yrd Mat Sub Mat Gar Mat Fac Gar Fac Fac DSF Fac Gar Fac Gar Fac Machines Accessed 55 | . 11 3 9 3 3 6 2 3 2 . 3 1 2 . 7 Terminals 28 | . 8 . 5 3 1 3 2 . 1 . . 1 1 . 3 Fabricators 1 | . . . . . . 1 . . . . . . . . . Repair Stations 6 | . 1 . . . 2 . . 1 . . 2 . . . . Recycling Units 7 | . 2 . 1 . . . . 2 . . . . . . 2 Scanalyzers 5 | . . . 2 . . 1 . . 1 . . . . . 1 Garrison Access 5 | . . . 1 . . 1 . . . . 1 . 1 . 1 Total Hacks 130 | . 38 4 18 4 9 13 3 6 2 . 8 2 4 . 19 Successful 70 | . 22 4 10 3 5 4 1 3 1 . 4 1 1 . 11 Failed 57 | . 15 . 7 1 4 9 2 3 1 . 4 1 3 . 7 Catastrophic 9 | . . . . . . 3 1 . 1 . 1 . 2 . 1 Database Lockouts 3 | . 1 . 1 . . . . . . . . . . . 1 Manual 50 | . 18 . 8 . 4 8 . . . . 3 . 3 . 6 Terminals 68 | . 26 . 10 4 5 7 3 . 1 . . 2 1 . 9 Fabricators 1 | . . . . . . 1 . . . . . . . . . Repair Stations 21 | . 8 . . . 4 . . 4 . . 5 . . . . Recycling Units 11 | . 4 . 2 . . . . 2 . . . . . . 3 Scanalyzers 13 | . . . 4 . . 3 . . 1 . . . . . 5 Garrison Access 12 | . . . 2 . . 2 . . . . 3 . 3 . 2 Terminal Hacks 24 | . 6 4 4 3 1 . 1 . 1 . . 1 . . 3 Record 1 | . . 1 . . . . . . . . . . . . . Part Schematic 1 | . . . 1 . . . . . . . . . . . . Robot Analysis 3 | . 3 . . . . . . . . . . . . . . Prototype ID Bank 1 | . . . 1 . . . . . . . . . . . . Open Door 2 | . . 1 . 1 . . . . . . . . . . . Open DSF 1 | . . . . . . . . . 1 . . . . . . Branch Access Points 2 | . . . 1 . . . . . . . . . . . 1 Emergency Access Points 2 | . . . . 1 . . 1 . . . . . . . . Terminal Index 1 | . . . 1 . . . . . . . . . . . . Locate Traps 2 | . 2 . . . . . . . . . . . . . . Transport Status 1 | . . . . . . . . . . . . . . . 1 Hauler Manifests 3 | . 1 . . . 1 . . . . . . . . . 1 Patrol Navigation 2 | . . . . 1 . . . . . . . 1 . . . Proto ID Catalog 1 | . . 1 . . . . . . . . . . . . . Release Object 1 | . . 1 . . . . . . . . . . . . . Fabricator Hacks 1 | . . . . . . 1 . . . . . . . . . Network Status 1 | . . . . . . 1 . . . . . . . . . Repair Station Hacks 12 | . 6 . . . 2 . . 2 . . 2 . . . . Scan Component 6 | . 3 . . . 1 . . 1 . . 1 . . . . Repair 6 | . 3 . . . 1 . . 1 . . 1 . . . . Recycling Unit Hacks 5 | . 1 . 1 . . . . 1 . . . . . . 2 Report Inventory 1 | . . . . . . . . 1 . . . . . . . Retrieve Components 4 | . 1 . 1 . . . . . . . . . . . 2 Scanalyzer 7 | . . . 2 . . 2 . . . . . . . . 3 Insert Component 3 | . . . 1 . . 1 . . . . . . . . 1 Analyze 2 | . . . . . . 1 . . . . . . . . 1 Retrieve Study 2 | . . . 1 . . . . . . . . . . . 1 Garrison Access Hacks 6 | . . . 1 . . 1 . . . . 1 . 1 . 2 Unlock Access 4 | . . . 1 . . 1 . . . . 1 . 1 . . Seal Access 1 | . . . . . . . . . . . . . . . 1 Coupler Status 1 | . . . . . . . . . . . . . . . 1 Unauthorized Hacks 15 | . 9 . 2 . 2 . . . . . 1 . . . 1 Terminals 10 | . 7 . . . 2 . . . . . . . . . 1 Botnet 3 | . 1 . . . 1 . . . . . . . . . 1 Operators 2 | . 1 . . . 1 . . . . . . . . . . Skim 5 | . 5 . . . . . . . . . . . . . . Fabricators . | . . . . . . . . . . . . . . . . Repair Stations . | . . . . . . . . . . . . . . . . Recycling Units 3 | . 2 . 1 . . . . . . . . . . . . Tunnel 3 | . 2 . 1 . . . . . . . . . . . . Scanalyzers . | . . . . . . . . . . . . . . . . Garrison Access 2 | . . . 1 . . . . . . . 1 . . . . Reprogram 2 | . . . 1 . . . . . . . 1 . . . . Data Cores Recovered 2 | . . . . . . . . 1 . . . . 1 . . Used . | . . . . . . . . . . . . . . . . Hacking Detections 39 | . 8 . 5 1 3 5 2 1 1 . 3 1 2 . 7 Full Trace Events 4 | . . . 1 . . 1 1 . . . 1 . . . . Feedback Events . | . . . . . . . . . . . . . . . . Feedback Blocked . | . . . . . . . . . . . . . . . . Robot Schematics Acquired . | . . . . . . . . . . . . . . . . Robots Built . | . . . . . . . . . . . . . . . . Authchips . | . . . . . . . . . . . . . . . . Time . | . . . . . . . . . . . . . . . . Total Robot Build Rating . | . . . . . . . . . . . . . . . . Part Schematics Acquired 2 | . . . 1 . . 1 . . . . . . . . . Parts Built . | . . . . . . . . . . . . . . . . Authchips . | . . . . . . . . . . . . . . . . Time . | . . . . . . . . . . . . . . . . Total Part Build Rating . | . . . . . . . . . . . . . . . . Part Studies Acquired 2 | . . . 1 . . . . . . . . . . . 1 Parts Repaired 6 | . 3 . . . 1 . . 1 . . 1 . . . . Time 196 | . 78 . . . 38 . . 50 . . 30 . . . . Parts Recycled . | . . . . . . . . . . . . . . . . Recycled Matter . | . . . . . . . . . . . . . . . . Retrieved Matter . | . . . . . . . . . . . . . . . . Retrieved Components 25 | . 10 . 10 . . . . . . . . . . . 5 Parts Scanalyzed 3 | . . . 1 . . 1 . . . . . . . . 1 Part Schematics Acquired 1 | . . . . . . 1 . . . . . . . . . Parts Damaged . | . . . . . . . . . . . . . . . . Bothacking | -11 -10 -10 -8 -8 -8 -7 -7 -7 -6 -6 -5 -5 -4 -4 -4 ------------ Run | Yrd Mat Sub Mat Gar Mat Fac Gar Fac Fac DSF Fac Gar Fac Gar Fac Used RIF Installer 5 | . . . . 1 . . 2 . . . . 1 . 1 . Hotswap 1 | . . . . . . . 1 . . . . . . . . Code Merge 1 | . . . . . . . . . . . . . . 1 . Robot Detection 1 | . . . . . . . 1 . . . . . . . . Autooverride 1 | . . . . . . . . . . . . 1 . . . Robots Hacked 13 | . . . . . . . 2 1 . . . 2 . 4 4 Non-combat 1 | . . . . . . . . . . . . . . . 1 Combat 12 | . . . . . . . 2 1 . . . 2 . 4 3 Autooverrided 1 | . . . . . . . . . . . . . . . 1 Robot Hacks Applied 15 | . . . . . . . 3 1 . . . 2 . 4 5 find_fabricator 1 | . . . . . . . . . . . . . . . 1 amplify_resonance 4 | . . . . . . . 2 . . . . . . 1 1 disable_weapons 4 | . . . . . . . 1 . . . . 1 . . 2 overwrite_iff 3 | . . . . . . . . . . . . . . 3 . formatsys_high 3 | . . . . . . . . 1 . . . 1 . . 1 Relay Couplers Released 36 | . . . . 10 . . 7 3 . . . 7 . 9 . Machine Destruction 33 | . . . . 10 . . 7 . . . . 7 . 9 . Programmers 3 | . . . . . . . . 3 . . . . . . . Attached 6 | . . . . . . . 1 1 . . . 1 . 2 1 Fabnet Peak Effective % . | . . . . . . . . . . . . . . . . Robots Rewired 6 | . . . . . . . . . . . . 3 . 3 . Allies Hacked . | . . . . . . . . . . . . . . . . Hacks Repelled . | . . . . . . . . . . . . . . . . Allies | -11 -10 -10 -8 -8 -8 -7 -7 -7 -6 -6 -5 -5 -4 -4 -4 -------- Run | Yrd Mat Sub Mat Gar Mat Fac Gar Fac Fac DSF Fac Gar Fac Gar Fac Total Allies 18 | . . . . 1 . . . 1 . . 4 4 . 6 2 Largest Group 4 | . . . . 1 . . . 1 . . 4 4 . 3 3 Highest-Rated Group 168 | . . . . 39 . . . 21 . . 116 136 . 168 168 Highest-Rated Ally 116 | . . . . 39 . . . 21 . . 29 49 . 116 56 Total Orders 2 | . . . . . . . . . . . . . . . 2 STAY 1 | . . . . . . . . . . . . . . . 1 FOLLOW 1 | . . . . . . . . . . . . . . . 1 Ally Attacks 178 | . . . . 11 . . . 8 . . 10 108 . 10 31 Total Damage 2667 | . . . . 106 . . . 150 . . 81 1380 . 174 776 Kills 25 | . . . . 1 . . . . . . 1 17 . 2 4 Allies Corrupted . | . . . . . . . . . . . . . . . . Allies Melted . | . . . . . . . . . . . . . . . . Intel | -11 -10 -10 -8 -8 -8 -7 -7 -7 -6 -6 -5 -5 -4 -4 -4 ------- Run | Yrd Mat Sub Mat Gar Mat Fac Gar Fac Fac DSF Fac Gar Fac Gar Fac Active Infowar (turns) 8493 | 38 92 2583 2225 368 581 1312 . . . . 30 136 187 48 893 Sensors 1028 | . . . . . 202 . . . . . . . . . 826 Terrain 1803 | . . . 1803 . . . . . . . . . . . . Seismic 6451 | 38 92 2583 1208 368 378 1312 . . . . 30 136 187 48 71 Jamming 1 | . . . . . 1 . . . . . . . . . . Robot Analysis Total 3 | . 3 . . . . . . . . . . . . . . Derelict Logs Recovered 1 | . . 1 . . . . . . . . . . . . . Drone Launches . | . . . . . . . . . . . . . . . . Drone Recoveries . | . . . . . . . . . . . . . . . . Exploration | -11 -10 -10 -8 -8 -8 -7 -7 -7 -6 -6 -5 -5 -4 -4 -4 ------------- Run | Yrd Mat Sub Mat Gar Mat Fac Gar Fac Fac DSF Fac Gar Fac Gar Fac Turns Passed 23813 | 106 2100 4223 2665 1603 802 1845 1323 3357 69 315 470 1122 661 1179 1973 Spaces Moved 10016 | 53 795 1625 1184 793 401 950 517 1419 44 95 181 382 245 392 940 Core 14 | 4 . . . . . . 1 . . . . . . . 9 Treads 7257 | . 713 1625 1184 793 401 950 365 252 . 68 181 382 245 96 2 Legs 749 | 49 82 . . . . . 151 307 . . . . . 160 . Wheels 1996 | . . . . . . . . 860 44 27 . . . 136 929 Hover . | . . . . . . . . . . . . . . . . Flight . | . . . . . . . . . . . . . . . . Fastest Speed 50 | 50 120 240 150 152 156 156 160 150 155 155 231 231 236 155 130 Average Speed 192 | 114 216 240 156 159 158 158 207 194 155 228 231 234 236 202 159 Slowest Speed 2450 | 120 240 240 160 240 160 242 1250 385 155 317 231 238 239 560 2450 Overloaded Moves . | . . . . . . . . . . . . . . . . Propulsion Burnouts . | . . . . . . . . . . . . . . . . Robots Hopped . | . . . . . . . . . . . . . . . . Potential Cave-ins . | . . . . . . . . . . . . . . . . Cave-ins Triggered . | . . . . . . . . . . . . . . . . Exploration Rate (%) 41 | 5 98 82 66 78 36 26 48 39 1 72 4 43 3 37 22 Regions Visited 15 Branch Regions 1 Pre-discovered Areas 3 | . 2 . 1 . . . . . . . . . . . . Known Exits Taken 7 | . . 1 1 . 1 1 . . 1 . 1 . 1 . . Unknown Exits Taken 3 | 1 1 . . . . . . 1 . . . . . . . Scrap Searched 3 | . . 3 . . . . . . . . . . . . . Spaces Dug 40 | . 1 . 8 3 . 5 . 5 . . 2 1 1 3 11 Terrain Destroyed 541 | . 2 3 29 23 47 13 7 205 . 5 2 26 6 19 154 Melee 33 | . . . 6 3 . 5 . 4 . . 2 1 1 3 8 Projectile 117 | . 2 3 5 1 . . 7 26 . . . 9 5 6 53 AOE 390 | . . . 17 19 47 8 . 175 . 5 . 16 . 10 93 Terrain Rammed . | . . . . . . . . . . . . . . . . Walls Destroyed . | . . . . . . . . . . . . . . . . Machines Disabled . | . . . . . . . . . . . . . . . . Actions | -11 -10 -10 -8 -8 -8 -7 -7 -7 -6 -6 -5 -5 -4 -4 -4 --------- Run | Yrd Mat Sub Mat Gar Mat Fac Gar Fac Fac DSF Fac Gar Fac Gar Fac Total 12697 | 76 1036 1774 1712 974 511 1160 671 1743 45 155 231 498 308 596 1207 Wait 709 | . 120 18 223 28 43 52 13 82 . . 33 8 41 5 43 Move 10003 | 52 794 1624 1183 792 400 950 516 1418 43 94 180 381 245 391 940 Hop . | . . . . . . . . . . . . . . . . Pick Up 190 | 5 15 14 26 11 4 13 16 28 . 5 4 9 1 21 18 Fast Attach 122 | 8 7 2 19 3 5 6 11 10 . 3 3 1 2 17 25 Attach 109 | . 4 3 11 9 . 11 9 16 . 6 1 6 5 12 16 Detach 43 | 1 2 . 7 1 1 4 5 7 . . 1 3 2 2 7 Swap 260 | . 17 24 42 27 16 29 10 19 1 10 3 13 3 17 29 Drop 212 | . 9 18 48 10 12 19 22 22 1 1 4 9 . 13 24 Fire 817 | 10 65 71 139 78 30 49 42 110 . 20 . 58 8 57 80 Melee 156 | . . . 7 15 . 22 11 23 . . 2 6 1 54 15 Ram 4 | . . . . . . . . 1 . . . . . . 3 Kick . | . . . . . . . . . . . . . . . . Crush 26 | . 3 . 7 . . 5 4 7 . . . . . . . Escape Stasis 44 | . . . . . . . 12 . . 14 . 4 . 7 7 Rewire 2 | . . . . . . . . . . 2 . . . . . Trap . | . . . . . . . . . . . . . . . . Miscellaneous . | . . . . . . . . . . . . . . . . Route ------- -11/Scrapyard -10/Materials (discovered 6 exits: *Mat x3 / *Min x2 / *Sub) -10/Subcaves (discovered 2 exits: *Mat x2) -8/Materials (discovered 2 exits: Fac / Gar) -8/Garrison (discovered 3 exits: *Mat x3) -8/Materials -7/Factory (discovered 2 exits: [*Low] / Gar) -7/Garrison -7/Factory -6/Factory -6/DSF -5/Factory -5/Garrison (discovered 2 exits: *Fac / [*Fac]) -4/Factory -4/Garrison -4/Factory (discovered 4 exits: *Upp x2 / Ext x2) History --------- Turn | Location | Event 3 | -11/Scrapyard | Discovered new exit (range 16) 107 | -11/Scrapyard | Entered Materials 192 | -10/Materials | Discovered new exit (range 8) 226 | -10/Materials | Discovered new exit (range 15) 311 | -10/Materials | Build established: Mutant 396 | -10/Materials | Repaired Assault Rifle 639 | -10/Materials | Discovered new exit (range 16) 648 | -10/Materials | Central database locked down 1235 | -10/Materials | Discovered new exit (range 16) 1451 | -10/Materials | Identified exit to Materials 1490 | -10/Materials | Identified exit to Mines 1517 | -10/Materials | Learned 4 Materials zone layouts 1535 | -10/Materials | Learned 4 Subcaves zone layouts 1606 | -10/Materials | Loaded intel: 29 machine locations 1815 | -10/Materials | Repaired Lgt. Treads 1842 | -10/Materials | Repaired Lgt. Treads 2193 | -10/Materials | Discovered new exit (range 8) 2207 | -10/Materials | Entered Subcaves 2208 | -10/Subcaves | Identified exit to Materials 2223 | -10/Subcaves | Learned location of 1 exit from Materials 2268 | -10/Subcaves | Shifting Twisted Machinery released Sub. Monowheel 2270 | -10/Subcaves | Shifting Twisted Machinery released Flamer 3542 | -10/Subcaves | Core integrity fell below 50% 3626 | -10/Subcaves | A swath of the cavern ceiling suddenly collapsed 3767 | -10/Subcaves | Shifting Twisted Machinery released Sub. Laser 4513 | -10/Subcaves | Shifting Twisted Machinery released Mak. Laser 4807 | -10/Subcaves | Build established: Scavenger-Mutant 5280 | -10/Subcaves | Visited 4L-MR0's lab 5308 | -10/Subcaves | Found Flightbrick 5513 | -10/Subcaves | Core integrity fell below 20% 5811 | -10/Subcaves | Build established: Mutant 6170 | -10/Subcaves | Shifting Twisted Machinery released Sub. Laser 6223 | -10/Subcaves | Shifting Twisted Machinery released Sub. Power Source 6430 | -10/Subcaves | Entered Materials 6430 | -8/Materials | Evolved 4 slots: Propulsion x2, Utility x2 6431 | -8/Materials | Identified exit to Factory 7569 | -8/Materials | Build established: Scavenger-Mutant 8000 | -8/Materials | Central database locked down 8893 | -8/Materials | Identified exit to Garrison 9095 | -8/Materials | Entered Garrison 9121 | -8/Garrison | Triggered checkpoint 9190 | -8/Garrison | Lost 3 parts (2n1u) 9279 | -8/Garrison | Garrison Relay disabled 9507 | -8/Garrison | Triggered checkpoint 9536 | -8/Garrison | Triggered checkpoint 9538 | -8/Garrison | Triggered checkpoint 9572 | -8/Garrison | Core integrity fell below 50% 9596 | -8/Garrison | Destroyed 9 combat bots 9603 | -8/Garrison | Lost 3 parts (2n1u) 9690 | -8/Garrison | Triggered checkpoint 9749 | -8/Garrison | Garrison Relay disabled 9835 | -8/Garrison | Discovered new exit (range 9) 9999 | -8/Garrison | Discovered new exit (range 12) 10025 | -8/Garrison | Triggered checkpoint 10050 | -8/Garrison | Garrison Relay disabled 10234 | -8/Garrison | Triggered checkpoint 10334 | -8/Garrison | Triggered checkpoint 10420 | -8/Garrison | Rescued a captive Derelict 10426 | -8/Garrison | Discovered new exit (range 13) 10442 | -8/Garrison | Installed Relay Interface Framework 10698 | -8/Garrison | Entered Materials 11019 | -8/Materials | Repaired Hrd. Medium Armor Plating 11098 | -8/Materials | First assault squad dispatched 11275 | -8/Materials | Discovered exit to Factory (range 5) 11500 | -8/Materials | Entered Factory 11500 | -7/Factory | Evolved 2 slots: Weapon x2 11803 | -7/Factory | Build established: Scavenger-Gunner 12829 | -7/Factory | Discovered new exit (range 6) 12919 | -7/Factory | Assembled infested ambush trap array 13002 | -7/Factory | Destroyed 17 combat bots 13005 | -7/Factory | Lost 6 parts (2n1u3w) 13230 | -7/Factory | Build established: Scavenger-Tank 13345 | -7/Factory | Identified exit to Garrison 13345 | -7/Factory | Entered Garrison 13407 | -7/Garrison | Expanded RIF knowledge: Hotswap 13435 | -7/Garrison | Triggered checkpoint 13463 | -7/Garrison | Garrison Relay disabled 13643 | -7/Garrison | Triggered checkpoint 13716 | -7/Garrison | Lost 6 parts (3n2u1w) 13719 | -7/Garrison | Triggered checkpoint 13871 | -7/Garrison | Triggered checkpoint 14048 | -7/Garrison | Expanded RIF knowledge: Robot Detection 14100 | -7/Garrison | Garrison Relay disabled 14219 | -7/Garrison | Core integrity fell below 50% 14250 | -7/Garrison | Lost 5 parts (4n1u) 14514 | -7/Garrison | Discovered new exit (range 13) 14668 | -7/Garrison | Entered Factory 14880 | -7/Factory | Build established: Scavenger-Mutant 15596 | -7/Factory | Build established: Tank 15924 | -7/Factory | Repaired Imp. Heavy Armor Plating 16163 | -7/Factory | Garrison activated, responded to threat 16255 | -7/Factory | Discovered new exit (range 14) 16597 | -7/Factory | Allied Derelicts emerged from ambush trap array 16668 | -7/Factory | First assault squad dispatched 17069 | -7/Factory | Lost 3 parts (1n1u1w) 17162 | -7/Factory | System corruption reached 10% 17472 | -7/Factory | Core integrity fell below 20% 17864 | -7/Factory | Build established: Gunner 18025 | -7/Factory | Entered another Factory area 18025 | -6/Factory | Evolved 2 slots: Utility x2 18070 | -6/Factory | Identified exit to DSF 18094 | -6/Factory | Entered DSF 18134 | -6/DSF | Additional patrols routed to DSF 18251 | -6/DSF | Discovered new exit (range 15) 18259 | -6/DSF | Lost 3 parts (1n2u) 18264 | -6/DSF | Sterilization system engaged 18274 | -6/DSF | Destroyed 8 combat bots 18284 | -6/DSF | Ambient heat levels rising (+10) 18299 | -6/DSF | Ambient heat levels rising (+10) 18314 | -6/DSF | Ambient heat levels rising (+10) 18329 | -6/DSF | Ambient heat levels rising (+10) 18344 | -6/DSF | Ambient heat levels rising (+10) 18359 | -6/DSF | Ambient heat levels rising (+10) 18374 | -6/DSF | Ambient heat levels rising (+10) 18389 | -6/DSF | Ambient heat levels rising (+10) 18404 | -6/DSF | Ambient heat levels rising (+10) 18409 | -6/DSF | Entered Factory 18409 | -5/Factory | Evolved 2 slots: Utility x1, Weapon x1 18530 | -5/Factory | Identified exit to Garrison 18753 | -5/Factory | Repaired Enh. Autogun 18879 | -5/Factory | Entered Garrison 18935 | -5/Garrison | Triggered checkpoint 18969 | -5/Garrison | Garrison Relay disabled 19003 | -5/Garrison | Assembled breached garrison interior 19307 | -5/Garrison | Discovered new exit (range 6) 19410 | -5/Garrison | Spotted B-75 Beast 19426 | -5/Garrison | Destroyed B-75 Beast 19524 | -5/Garrison | Destroyed 13 combat bots 19630 | -5/Garrison | Destroyed 11 combat bots 19706 | -5/Garrison | Discovered new exit (range 10) 19714 | -5/Garrison | Build established: Scavenger-Gunner 19788 | -5/Garrison | Garrison Relay disabled 19881 | -5/Garrison | Lost 4 parts (1p1n1u1w) 19901 | -5/Garrison | Expanded RIF knowledge: Autooverride 20001 | -5/Garrison | Entered Factory 20001 | -4/Factory | Evolved 2 slots: Power x1, Propulsion x1 20490 | -4/Factory | Build established: Scavenger-Tank 20662 | -4/Factory | Identified exit to Garrison 20662 | -4/Factory | Entered Garrison 20751 | -4/Garrison | Lost 5 parts (3n2u) 20776 | -4/Garrison | Triggered checkpoint 20832 | -4/Garrison | Garrison Relay disabled 20844 | -4/Garrison | Lost 3 parts (1p1n1u) 20956 | -4/Garrison | Spotted B-86 Titan 20963 | -4/Garrison | Triggered checkpoint 20992 | -4/Garrison | Triggered checkpoint 21002 | -4/Garrison | Destroyed B-86 Titan 21028 | -4/Garrison | Lost 10 parts (3n2u5w) 21070 | -4/Garrison | System corruption reached 10% 21091 | -4/Garrison | Lost 3 parts (1p1n1w) 21199 | -4/Garrison | Found Hvy. Reflective Plating 21297 | -4/Garrison | Spotted B-86 Titan 21336 | -4/Garrison | Destroyed B-86 Titan 21357 | -4/Garrison | Lost 3 parts (1n1u1w) 21358 | -4/Garrison | Discovered new exit (range 13) 21400 | -4/Garrison | Triggered checkpoint 21430 | -4/Garrison | Build established: Scavenger-Gunner 21467 | -4/Garrison | Garrison Relay disabled 21527 | -4/Garrison | Found Adv. Powered Armor 21615 | -4/Garrison | Expanded RIF knowledge: Code Merge 21841 | -4/Garrison | Entered Factory 21841 | -4/Factory | Accompanied by 3 allies 21990 | -4/Factory | Discovered new exit (range 10) 22011 | -4/Factory | Identified exit to Upper Caves 22449 | -4/Factory | Spotted B-86 Titan 22612 | -4/Factory | Lost 3 allies 22615 | -4/Factory | Destroyed B-86 Titan 22678 | -4/Factory | Core integrity fell below 50% 22755 | -4/Factory | Destroyed 7 combat bots 22769 | -4/Factory | Lost 3 parts (1p2w) 22860 | -4/Factory | Central database locked down 22910 | -4/Factory | Identified exit to Extension 23583 | -4/Factory | Lost 4 parts (1n1u2w) 23814 | -4/Factory | Self-destructed Last Messages --------------- 23801_ KE Penetrator+ destroyed. 23801_ Destroyed KE Penetrator+. 23801_ Arm. Huge Wheel destroyed. 23801_ Destroyed Arm. Huge Wheel. 23803_ K-01 Serf collects debris. 23805_ S-27 Virus destroyed. 23805_ K-01 Serf collects debris. 23805_ U-05 Engineer lays Concrete. 23806_ K-01 Serf collects debris. 23806_ U-05 Engineer lays Concrete. 23809_ K-01 Serf collects debris. 23809_ U-05 Engineer lays Concrete. 23809_ K-01 Serf collects debris. 23810_ U-05 Engineer builds a Wall. 23811_ U-05 Engineer lays Concrete. 23812_ Acquired 11 matter. 23812_ U-05 Engineer lays Concrete. 23813_ K-01 Serf collects debris. 23814_ U-05 Engineer lays Concrete. 23814_ K-01 Serf collects debris. Map ----- +----------------------------------------------------+ | ?????????????????????????????????????????????????? | | ?????????????????????????????????????????????????? | | ?????????????????????????????????????????????????? | | ?????????????????????????????????????????????????? | | ?????????????????????????????????????????????????? | | ?????????????????????????????????????????????????? | | ?????????????????????????????????????????????????? | | ?????????????????????????????????????????????????? | | ?????????????????????????????????????????????????? | | ????????????????? ?????????????????????????????? | | ????????????????? #????????????????????????????? | | ????????????????+ #????????????????????????????? | | ????????????????# #?????? ?????????????????????? | | ????????????????# # ""?? "????????????????????? | | ????????????????# #?""? "????????????????????? | | ????????????????# #?""" ?????????????????????? | | ????????????????# #? ??????????????????????? | | ????#######?????# #? ???????????????????????? | | ????# ####### ###+####?????????????????????? | | ????# #?????????????????????? | | ????+ " #?????????????????????? | | ????# #?????????????????????? | | ????# # # # ### ##????????????????????? | | ????###+################ ;#????????????????????? | | ????# # % ;u ;#????????????????????? | | ####### ug@R #????????????????????? | | + u ; u!%=%= #??????????????? | | ####### =* ; !%|=[ #??????????????? | | ?????## =% # |*% k #??????????????? | | ?????## ]! % ####!;;k ????????????? | | ????# # =*= # ##### ??????????? | | ????###] # #????R ??????????? | | ###???# # #????? R ! ??????????? | | # ###?################## #?????? ???????????? | | ### ###### # # ###???????!! ???????????? | | ##?# ##??????????! ????????????? | | ##?#### #???????????? ????????????? | | ! #?????# #??????????????????????????? | | #?????# """""" /??????????????????????????? | | #?????? """""" #??????????????????????????? | | #?????? "????? ???????????????????????????? | | #?????? ??????????????????????????????????? | | #??????????????????????????????????????????? | | #######??????????????????????????????????????????? | | ???????????????????????????????????????????????? | | ???????????????????????????????????????????????? | | ??????????????????????????????????????????????? | | ! ??????????????????????????????????????????????? | | #?????????????????????????????????????????????? | | ???????????????????????????????????????????????? | +----------------------------------------------------+ Best States ------------- Heat Dissipation 97 Coolant Potential 50 Energy Generation 35 Energy Capacity 755 Matter Stores 300 Matter Capacity 300 Sight Range 16 Robot Scan Range 16 Terrain Scan Range 16 Terrain Scan Density 10 Armor Coverage 1200 Resistance: KI 30 Resistance: TH 25 Resistance: EM 25 Phase Shifting 15 Evasion (%) 55 Targeting Accuracy 14 Target Analysis 6 Core Analysis 6 Recoil Reduction 5 Matter Filtering 30 Offensive Hacking 14 Relay Coupler Types 2 Relay Coupler Value 32 Item Schematics ----------------- Plasma Cutter | -8/Materials | Hacked Cmb. Airjet | -7/Factory | Scanalyzed Robot Schematics ------------------ None Fabricated ------------ Nothing Repaired ---------- Assault Rifle | 59% | -10/Materials Lgt. Treads | 12% | -10/Materials Lgt. Treads | 27% | -10/Materials Hrd. Medium Armor Plating | 7% | -8/Materials Imp. Heavy Armor Plating | 73% | -7/Factory Enh. Autogun | 8% | -5/Factory Studied --------- Gauss Rifle | -8/Materials | Hacked KE Penetrator | -4/Factory | Hacked Alien Tech Used ----------------- None Achievements -------------- None Challenges ------------ None Game ------ Seed VortexFieldBeacon Manual? 0 Play Time 04:15:14 Cumulative 446.1 hours Start 2026.09.12 @ 19:18:22 End 2026.09.19 @ 18:10:12 Sessions 14 Manual Loads 0 Difficulty Rogue Special Mode None Game No. 126 Rogue 126 Adventurer 0 Explorer 0 Win Type - Total 4 Types 3/0/1/0/0/0/0/0/0/0 Lore% 73 Gallery% 65 Achievement% 55 Wizard Run 0 Options --------- Layout 0 ASCII 1 Keyboard 1 Movement Arrows Keybinds 0 Fullscreen 1 Font 24/Smallcaps Map View 76x50 Zoom Use 0% Tactical HUD 1 Map Filters NONE Filters NONE Steam 1 RUN: ec66e800-a333-4e65-a0fc-6c628f7b6464